[Event "Late-Titled-Tuesday-Blitz-August-29-2023"]
[Site "Chess.com"]
[Date "2023.08.29"]
[Round "9"]
[White "Petukhov_Dmitry"]
[Black "19912131712118"]
[Result "0-1"]
[WhiteElo "2510"]
[BlackElo "2433"]
[TimeControl "180+1"]
[EndTime "15:42:15 PDT"]
[Termination "19912131712118 won by resignation"]

1. e4 {[%clk 0:02:59.4]} 1... c5 {[%clk 0:02:58.5]} 2. c3 {[%clk 0:02:59.1]}
2... e6 {[%clk 0:02:55.7]} 3. d4 {[%clk 0:02:58.9]} 3... cxd4 {[%clk 0:02:55.6]}
4. cxd4 {[%clk 0:02:59.8]} 4... d5 {[%clk 0:02:56]} 5. e5 {[%clk 0:03:00.2]}
5... Nc6 {[%clk 0:02:54.4]} 6. Nf3 {[%clk 0:03:00.4]} 6... Be7 {[%clk
0:02:49.3]} 7. Nc3 {[%clk 0:02:59.7]} 7... h5 {[%clk 0:02:49.2]} 8. h4 {[%clk
0:02:58]} 8... Nh6 {[%clk 0:02:49]} 9. Bg5 {[%clk 0:02:48.3]} 9... a6 {[%clk
0:02:44.4]} 10. Bd3 {[%clk 0:02:42.8]} 10... Bd7 {[%clk 0:02:43.7]} 11. Qd2
{[%clk 0:02:37.7]} 11... Nb4 {[%clk 0:02:35.2]} 12. Bb1 {[%clk 0:02:29.4]} 12...
Rc8 {[%clk 0:02:34]} 13. a3 {[%clk 0:02:27.8]} 13... Nc6 {[%clk 0:02:33.4]} 14.
Bd3 {[%clk 0:02:23.6]} 14... Na5 {[%clk 0:02:32.3]} 15. Rd1 {[%clk 0:02:22.6]}
15... Nc4 {[%clk 0:02:25.8]} 16. Qe2 {[%clk 0:02:21.8]} 16... b5 {[%clk
0:02:24.6]} 17. O-O {[%clk 0:02:18.5]} 17... a5 {[%clk 0:02:21.2]} 18. Rc1
{[%clk 0:02:13.1]} 18... b4 {[%clk 0:02:15.5]} 19. axb4 {[%clk 0:02:12.6]} 19...
axb4 {[%clk 0:02:16.4]} 20. Nb1 {[%clk 0:02:11.5]} 20... Na5 {[%clk 0:02:04.8]}
21. Nbd2 {[%clk 0:02:08.1]} 21... Ng4 {[%clk 0:01:56.4]} 22. Rxc8 {[%clk
0:01:52.6]} 22... Qxc8 {[%clk 0:01:52.5]} 23. Bxe7 {[%clk 0:01:47]} 23... Kxe7
{[%clk 0:01:53.4]} 24. Ng5 {[%clk 0:01:46.5]} 24... f6 {[%clk 0:01:41.5]} 25.
exf6+ {[%clk 0:01:36.3]} 25... gxf6 {[%clk 0:01:42.4]} 26. Nh3 {[%clk
0:01:37.2]} 26... Qc7 {[%clk 0:01:31.6]} 27. g3 {[%clk 0:01:36.5]} 27... Rg8
{[%clk 0:01:28.1]} 28. Nf4 {[%clk 0:01:34]} 28... Kf7 {[%clk 0:01:23.3]} 29.
Nxh5 {[%clk 0:01:31.3]} 29... Nc6 {[%clk 0:01:17.6]} 30. Nb3 {[%clk 0:01:27.4]}
30... e5 {[%clk 0:01:07.2]} 31. Bh7 {[%clk 0:01:26.5]} 31... Rh8 {[%clk
0:01:06]} 32. Qc2 {[%clk 0:01:06.6]} 32... e4 {[%clk 0:01:01.8]} 33. Nf4 {[%clk
0:00:34.9]} 33... Rxh7 {[%clk 0:00:54.4]} 34. Nxd5 {[%clk 0:00:35]} 34... Qd6
{[%clk 0:00:53.8]} 35. Qxe4 {[%clk 0:00:33.9]} 35... f5 {[%clk 0:00:53.5]} 36.
Qf3 {[%clk 0:00:30.8]} 36... Be6 {[%clk 0:00:52.4]} 37. Ne3 {[%clk 0:00:16.8]}
37... Nxe3 {[%clk 0:00:45.9]} 38. fxe3 {[%clk 0:00:15.9]} 38... Rg7 {[%clk
0:00:44.5]} 39. Qxf5+ {[%clk 0:00:15.9]} 39... Bxf5 {[%clk 0:00:43.5]} 40. Rf3
{[%clk 0:00:16.2]} 40... Rxg3+ {[%clk 0:00:41.8]} 0-1

[Event "Late-Titled-Tuesday-Blitz-August-29-2023"]
[Site "Chess.com"]
[Date "2023.08.29"]
[Round "9"]
[White "MarcoRiehle"]
[Black "Zhigalko_Sergei"]
[Result "1-0"]
[WhiteElo "2845"]
[BlackElo "2915"]
[TimeControl "180+1"]
[EndTime "15:42:24 PDT"]
[Termination "MarcoRiehle won on time"]

1. e4 {[%clk 0:02:46.9]} 1... c5 {[%clk 0:02:59.8]} 2. a3 {[%clk 0:02:47.2]}
2... e5 {[%clk 0:02:44.4]} 3. Nc3 {[%clk 0:02:44.9]} 3... Nf6 {[%clk 0:02:44.1]}
4. Bc4 {[%clk 0:02:45.3]} 4... Nc6 {[%clk 0:02:43.5]} 5. d3 {[%clk 0:02:45.1]}
5... Be7 {[%clk 0:02:27.6]} 6. f4 {[%clk 0:02:44.1]} 6... exf4 {[%clk 0:02:13]}
7. Bxf4 {[%clk 0:02:45]} 7... d6 {[%clk 0:02:12.9]} 8. Nf3 {[%clk 0:02:39.8]}
8... O-O {[%clk 0:02:13.4]} 9. O-O {[%clk 0:02:38.6]} 9... Be6 {[%clk 0:02:14]}
10. Nd5 {[%clk 0:02:35]} 10... Bxd5 {[%clk 0:02:02.7]} 11. Bxd5 {[%clk
0:02:28.2]} 11... Nxd5 {[%clk 0:01:59.7]} 12. exd5 {[%clk 0:02:29.1]} 12... Nb8
{[%clk 0:01:54.1]} 13. c4 {[%clk 0:02:22.1]} 13... Nd7 {[%clk 0:01:37.4]} 14.
Qd2 {[%clk 0:02:19.7]} 14... Re8 {[%clk 0:01:35.5]} 15. b4 {[%clk 0:02:18.2]}
15... Bf6 {[%clk 0:01:17.9]} 16. Rae1 {[%clk 0:02:12.5]} 16... Rxe1 {[%clk
0:01:08.1]} 17. Rxe1 {[%clk 0:02:13.4]} 17... cxb4 {[%clk 0:01:08.4]} 18. axb4
{[%clk 0:02:11]} 18... a5 {[%clk 0:01:08.6]} 19. bxa5 {[%clk 0:01:43.2]} 19...
Nc5 {[%clk 0:00:52.4]} 20. Rb1 {[%clk 0:01:39.9]} 20... Rxa5 {[%clk 0:00:34]}
21. d4 {[%clk 0:01:39]} 21... Na6 {[%clk 0:00:10.8]} 22. Bxd6 {[%clk 0:01:34.7]}
22... h6 {[%clk 0:00:05.4]} 23. c5 {[%clk 0:01:30.6]} 23... Ra4 {[%clk
0:00:03.1]} 24. h3 {[%clk 0:01:23.1]} 24... Qc8 {[%clk 0:00:03.1]} 25. Kh2
{[%clk 0:01:19.7]} 25... Ra3 {[%clk 0:00:02.5]} 26. Qf4 {[%clk 0:01:07.6]} 26...
Ra4 {[%clk 0:00:01.9]} 27. Qe4 {[%clk 0:01:01.1]} 27... Rb4 {[%clk 0:00:01.8]}
28. Rxb4 {[%clk 0:00:56.6]} 28... Nxb4 {[%clk 0:00:02.7]} 29. c6 {[%clk
0:00:57.2]} 29... Na6 {[%clk 0:00:02.7]} 30. Ne5 {[%clk 0:00:53.2]} 30... b5
{[%clk 0:00:01.7]} 31. Nd7 {[%clk 0:00:51.3]} 31... b4 {[%clk 0:00:01.6]} 32.
Qg4 {[%clk 0:00:45.4]} 32... Kh8 {[%clk 0:00:01.1]} 33. Nxf6 {[%clk 0:00:44.4]}
33... Qxg4 {[%clk 0:00:02]} 34. Nxg4 {[%clk 0:00:45]} 34... b3 {[%clk
0:00:02.7]} 35. Ba3 {[%clk 0:00:45]} 35... h5 {[%clk 0:00:03.4]} 36. Ne3 {[%clk
0:00:44.9]} 36... Nc7 {[%clk 0:00:02.9]} 37. d6 {[%clk 0:00:44.6]} 37... Ne6
{[%clk 0:00:03.5]} 38. c7 {[%clk 0:00:44]} 38... Nxc7 {[%clk 0:00:03.6]} 39.
dxc7 {[%clk 0:00:44]} 39... Kh7 {[%clk 0:00:04.5]} 40. c8=Q {[%clk 0:00:43.8]}
40... Kg6 {[%clk 0:00:04.9]} 41. Qf5+ {[%clk 0:00:43.3]} 41... Kh6 {[%clk
0:00:05]} 42. Bc1 {[%clk 0:00:42.7]} 1-0

[Event "Late-Titled-Tuesday-Blitz-August-29-2023"]
[Site "Chess.com"]
[Date "2023.08.29"]
[Round "9"]
[White "egnfanclub"]
[Black "Piotrek1979"]
[Result "0-1"]
[WhiteElo "2317"]
[BlackElo "2465"]
[TimeControl "180+1"]
[EndTime "15:42:26 PDT"]
[Termination "Piotrek1979 won by resignation"]

1. e4 {[%clk 0:03:00.9]} 1... d6 {[%clk 0:02:59.8]} 2. Nc3 {[%clk 0:03:00.1]}
2... Nf6 {[%clk 0:02:59.9]} 3. f4 {[%clk 0:03:00.7]} 3... Nc6 {[%clk 0:02:58.9]}
4. Nf3 {[%clk 0:03:01.3]} 4... Bg4 {[%clk 0:02:58.3]} 5. Bb5 {[%clk 0:03:01.6]}
5... g6 {[%clk 0:02:46.7]} 6. h3 {[%clk 0:03:01.2]} 6... Bxf3 {[%clk 0:02:45.7]}
7. Qxf3 {[%clk 0:03:02.1]} 7... Nd7 {[%clk 0:02:33.3]} 8. Bxc6 {[%clk
0:02:52.5]} 8... bxc6 {[%clk 0:02:31.8]} 9. O-O {[%clk 0:02:45.2]} 9... Bg7
{[%clk 0:02:27.8]} 10. d3 {[%clk 0:02:44.6]} 10... O-O {[%clk 0:02:25.9]} 11.
Be3 {[%clk 0:02:10.3]} 11... Rb8 {[%clk 0:02:24.5]} 12. Rab1 {[%clk 0:02:08.3]}
12... c5 {[%clk 0:02:22.7]} 13. Qf2 {[%clk 0:01:59]} 13... c6 {[%clk 0:02:09.6]}
14. d4 {[%clk 0:01:57]} 14... cxd4 {[%clk 0:02:09.4]} 15. Bxd4 {[%clk
0:01:57.8]} 15... Bxd4 {[%clk 0:02:08.2]} 16. Qxd4 {[%clk 0:01:58.7]} 16... Qb6
{[%clk 0:02:07.6]} 17. Ne2 {[%clk 0:01:50.4]} 17... a5 {[%clk 0:02:05.2]} 18.
Kh2 {[%clk 0:01:39]} 18... Qxd4 {[%clk 0:02:04.1]} 19. Nxd4 {[%clk 0:01:39.9]}
19... Rb6 {[%clk 0:02:02.1]} 20. b3 {[%clk 0:01:35.3]} 20... Rfb8 {[%clk
0:02:00.8]} 21. f5 {[%clk 0:01:30.5]} 21... Ne5 {[%clk 0:01:55.7]} 22. fxg6
{[%clk 0:01:29.9]} 22... hxg6 {[%clk 0:01:54.2]} 23. Nf3 {[%clk 0:01:08.1]}
23... Nd7 {[%clk 0:01:53.6]} 24. Ng5 {[%clk 0:01:03.7]} 24... f6 {[%clk
0:01:50.9]} 25. Ne6 {[%clk 0:01:00.4]} 25... a4 {[%clk 0:01:47.8]} 26. Rbd1
{[%clk 0:00:49.1]} 26... Ra8 {[%clk 0:01:45.4]} 27. Rd4 {[%clk 0:00:30.3]} 27...
c5 {[%clk 0:01:41.9]} 28. Rxa4 {[%clk 0:00:24.5]} 28... Rxa4 {[%clk 0:01:40.9]}
29. bxa4 {[%clk 0:00:25.4]} 29... Rb4 {[%clk 0:01:34.1]} 30. a5 {[%clk
0:00:25.1]} 30... Ra4 {[%clk 0:01:33.9]} 31. Nc7 {[%clk 0:00:23.3]} 31... Rxa2
{[%clk 0:01:29.6]} 32. a6 {[%clk 0:00:22.2]} 32... Nb8 {[%clk 0:01:26.9]} 33.
Rb1 {[%clk 0:00:20.3]} 33... Nxa6 {[%clk 0:01:26.7]} 34. Nd5 {[%clk 0:00:20.7]}
34... Nb4 {[%clk 0:01:16.2]} 35. Nxe7+ {[%clk 0:00:16.3]} 35... Kf7 {[%clk
0:01:15.7]} 36. Nd5 {[%clk 0:00:16.9]} 36... Nxd5 {[%clk 0:01:06.1]} 37. exd5
{[%clk 0:00:17.8]} 37... Rxc2 {[%clk 0:01:06]} 38. Rb6 {[%clk 0:00:18.3]} 38...
Ke7 {[%clk 0:01:05.9]} 39. Rb7+ {[%clk 0:00:18.7]} 39... Kd8 {[%clk 0:01:05.7]}
40. Rf7 {[%clk 0:00:18.1]} 40... Rf2 {[%clk 0:00:57.7]} 41. Kg1 {[%clk
0:00:14.4]} 41... Rf5 {[%clk 0:00:56.2]} 42. g4 {[%clk 0:00:12.6]} 42... Rxd5
{[%clk 0:00:56.5]} 43. Rxf6 {[%clk 0:00:13.1]} 43... g5 {[%clk 0:00:56.8]} 44.
Rf7 {[%clk 0:00:09.1]} 44... c4 {[%clk 0:00:56.4]} 45. Kf2 {[%clk 0:00:09]}
45... c3 {[%clk 0:00:56.3]} 46. Rf3 {[%clk 0:00:08.1]} 46... c2 {[%clk
0:00:53.3]} 47. Rc3 {[%clk 0:00:07.2]} 47... Rc5 {[%clk 0:00:53.9]} 0-1

[Event "Late-Titled-Tuesday-Blitz-August-29-2023"]
[Site "Chess.com"]
[Date "2023.08.29"]
[Round "9"]
[White "LastGladiator1"]
[Black "DanielNaroditsky"]
[Result "0-1"]
[WhiteElo "2914"]
[BlackElo "3104"]
[TimeControl "180+1"]
[EndTime "15:42:27 PDT"]
[Termination "DanielNaroditsky won by resignation"]

1. e4 {[%clk 0:03:00.9]} 1... c5 {[%clk 0:02:58.4]} 2. Nf3 {[%clk 0:02:58.7]}
2... d6 {[%clk 0:02:59.1]} 3. Bb5+ {[%clk 0:02:58.8]} 3... Nd7 {[%clk
0:02:58.9]} 4. O-O {[%clk 0:02:58.5]} 4... a6 {[%clk 0:02:58.9]} 5. Bxd7+ {[%clk
0:02:58.8]} 5... Bxd7 {[%clk 0:02:57.6]} 6. Re1 {[%clk 0:02:59.2]} 6... Nf6
{[%clk 0:02:55.5]} 7. d4 {[%clk 0:02:59.1]} 7... cxd4 {[%clk 0:02:54.9]} 8. Nxd4
{[%clk 0:02:59.4]} 8... e5 {[%clk 0:02:50.5]} 9. Nf5 {[%clk 0:02:36.1]} 9...
Nxe4 {[%clk 0:02:34.6]} 10. Nxg7+ {[%clk 0:02:36.1]} 10... Bxg7 {[%clk
0:02:35.5]} 11. Rxe4 {[%clk 0:02:36.5]} 11... Bc6 {[%clk 0:02:33.3]} 12. Rg4
{[%clk 0:02:36.8]} 12... Bf6 {[%clk 0:02:24.6]} 13. c4 {[%clk 0:02:21.7]} 13...
h5 {[%clk 0:02:13.3]} 14. Rg3 {[%clk 0:02:17.5]} 14... h4 {[%clk 0:02:14]} 15.
Rg4 {[%clk 0:02:17]} 15... h3 {[%clk 0:02:10.4]} 16. g3 {[%clk 0:02:17]} 16...
d5 {[%clk 0:01:54.8]} 17. cxd5 {[%clk 0:02:16.1]} 17... Qxd5 {[%clk 0:01:31.4]}
18. Qxd5 {[%clk 0:02:15.4]} 18... Bxd5 {[%clk 0:01:32.3]} 19. Nc3 {[%clk
0:02:07.1]} 19... Bf3 {[%clk 0:01:32.6]} 20. Rb4 {[%clk 0:01:49]} 20... Be7
{[%clk 0:01:28.3]} 21. Rb6 {[%clk 0:01:37.7]} 21... Bc5 {[%clk 0:01:03.5]} 22.
Rf6 {[%clk 0:01:37.2]} 22... Bc6 {[%clk 0:01:01.6]} 23. Rf5 {[%clk 0:01:18.4]}
23... O-O-O {[%clk 0:00:57.9]} 24. Bg5 {[%clk 0:01:09.7]} 24... Rd3 {[%clk
0:00:56.1]} 25. Bf6 {[%clk 0:00:15.3]} 25... Re8 {[%clk 0:00:22]} 26. Re1 {[%clk
0:00:12.4]} 26... Bd4 {[%clk 0:00:18.3]} 27. Rh5 {[%clk 0:00:04.6]} 27... Rd2
{[%clk 0:00:16]} 28. Rf1 {[%clk 0:00:02.9]} 28... Bg2 {[%clk 0:00:16.2]} 29. Bg5
{[%clk 0:00:02.3]} 29... Rxb2 {[%clk 0:00:15.7]} 30. Nd1 {[%clk 0:00:03]} 30...
Rb1 {[%clk 0:00:14.2]} 31. Re1 {[%clk 0:00:02.8]} 31... Bf3 {[%clk 0:00:14.8]}
32. Rh4 {[%clk 0:00:02.5]} 32... Rxd1 {[%clk 0:00:14.3]} 0-1

[Event "Late-Titled-Tuesday-Blitz-August-29-2023"]
[Site "Chess.com"]
[Date "2023.08.29"]
[Round "9"]
[White "RIPOL"]
[Black "Fan_Of_Chucky"]
[Result "0-1"]
[WhiteElo "2411"]
[BlackElo "2505"]
[TimeControl "180+1"]
[EndTime "15:42:27 PDT"]
[Termination "Fan_Of_Chucky won by checkmate"]

1. d4 {[%clk 0:02:58.9]} 1... Nf6 {[%clk 0:03:00.3]} 2. Bg5 {[%clk 0:02:57.8]}
2... c5 {[%clk 0:03:01.2]} 3. Bxf6 {[%clk 0:02:57]} 3... gxf6 {[%clk 0:02:57.3]}
4. d5 {[%clk 0:02:56.7]} 4... Qb6 {[%clk 0:02:52.9]} 5. Qc1 {[%clk 0:02:56.5]}
5... Bh6 {[%clk 0:02:46.1]} 6. e3 {[%clk 0:02:55.7]} 6... d6 {[%clk 0:02:44.3]}
7. c4 {[%clk 0:02:54.1]} 7... Nd7 {[%clk 0:02:42.2]} 8. Nc3 {[%clk 0:02:52.7]}
8... Ne5 {[%clk 0:02:41.4]} 9. h3 {[%clk 0:02:41.9]} 9... Ng6 {[%clk 0:02:38.1]}
10. Nf3 {[%clk 0:02:26.3]} 10... Bd7 {[%clk 0:02:33.1]} 11. Bd3 {[%clk
0:02:22.2]} 11... O-O-O {[%clk 0:02:33.2]} 12. Qc2 {[%clk 0:02:19.5]} 12... Rhg8
{[%clk 0:02:29.4]} 13. g4 {[%clk 0:02:09.2]} 13... e6 {[%clk 0:02:20.7]} 14. a3
{[%clk 0:02:02.8]} 14... Bg7 {[%clk 0:02:12.2]} 15. Rb1 {[%clk 0:01:58.8]} 15...
Ne7 {[%clk 0:01:43.3]} 16. Bxh7 {[%clk 0:01:33.8]} 16... Rh8 {[%clk 0:01:43.6]}
17. Be4 {[%clk 0:01:20.8]} 17... f5 {[%clk 0:01:39.4]} 18. gxf5 {[%clk
0:01:19.8]} 18... exf5 {[%clk 0:01:39.7]} 19. Bd3 {[%clk 0:01:17.9]} 19... f4
{[%clk 0:01:39.7]} 20. Ng5 {[%clk 0:01:08.7]} 20... fxe3 {[%clk 0:01:24.9]} 21.
Nxf7 {[%clk 0:01:04.5]} 21... exf2+ {[%clk 0:01:17.9]} 22. Kf1 {[%clk
0:01:00.5]} 22... Rxh3 {[%clk 0:01:08.4]} 23. Rxh3 {[%clk 0:00:49.3]} 23...
Bxh3+ {[%clk 0:01:09.3]} 24. Kxf2 {[%clk 0:00:49.3]} 24... Rf8 {[%clk
0:01:05.7]} 25. Kg3 {[%clk 0:00:49.1]} 25... Rxf7 {[%clk 0:00:48.1]} 26. Kxh3
{[%clk 0:00:48.7]} 26... Be5 {[%clk 0:00:45]} 27. Qe2 {[%clk 0:00:43.5]} 27...
Rg7 {[%clk 0:00:39.2]} 28. Qh5 {[%clk 0:00:39.5]} 28... Rg3+ {[%clk 0:00:37.3]}
29. Kh4 {[%clk 0:00:39.1]} 29... Rxd3 {[%clk 0:00:34.2]} 30. Rf1 {[%clk
0:00:36.4]} 30... Qd8 {[%clk 0:00:25.4]} 31. Qg4+ {[%clk 0:00:29.2]} 31... Nf5+
{[%clk 0:00:23.4]} 32. Kh5 {[%clk 0:00:28.3]} 32... Qh8+ {[%clk 0:00:22.8]} 33.
Kg6 {[%clk 0:00:27.6]} 33... Qf6+ {[%clk 0:00:09.4]} 34. Kh7 {[%clk 0:00:25.8]}
34... Qh8+ {[%clk 0:00:08.9]} 35. Kg6 {[%clk 0:00:24.8]} 35... Qf6+ {[%clk
0:00:09.8]} 36. Kh7 {[%clk 0:00:24.4]} 36... Qf7+ {[%clk 0:00:10.2]} 37. Qg7
{[%clk 0:00:20.7]} 37... Rh3# {[%clk 0:00:06.7]} 0-1

[Event "Late-Titled-Tuesday-Blitz-August-29-2023"]
[Site "Chess.com"]
[Date "2023.08.29"]
[Round "9"]
[White "Mikhail_Golubev"]
[Black "Sanan_Sjugirov"]
[Result "0-1"]
[WhiteElo "2598"]
[BlackElo "2859"]
[TimeControl "180+1"]
[EndTime "15:42:34 PDT"]
[Termination "Sanan_Sjugirov won on time"]

1. e4 {[%clk 0:03:00.9]} 1... c5 {[%clk 0:02:58.9]} 2. Nf3 {[%clk 0:03:00.9]}
2... e6 {[%clk 0:02:58.9]} 3. d4 {[%clk 0:02:59.8]} 3... cxd4 {[%clk 0:02:59]}
4. Nxd4 {[%clk 0:03:00.7]} 4... a6 {[%clk 0:02:59]} 5. Bd3 {[%clk 0:02:59.5]}
5... Bc5 {[%clk 0:02:58.4]} 6. Be3 {[%clk 0:02:54.6]} 6... d6 {[%clk 0:02:45]}
7. O-O {[%clk 0:02:45.3]} 7... Nf6 {[%clk 0:02:42.9]} 8. e5 {[%clk 0:02:32.2]}
8... Nd5 {[%clk 0:02:39.1]} 9. exd6 {[%clk 0:02:31.9]} 9... Nxe3 {[%clk
0:02:30.8]} 10. fxe3 {[%clk 0:02:32.2]} 10... Bxd6 {[%clk 0:02:23.2]} 11. Nc3
{[%clk 0:02:24.2]} 11... Qh4 {[%clk 0:02:10.8]} 12. Nf3 {[%clk 0:02:17.1]} 12...
Qe7 {[%clk 0:02:10]} 13. Ne4 {[%clk 0:02:04.1]} 13... Bc7 {[%clk 0:02:09.8]} 14.
Neg5 {[%clk 0:02:00.6]} 14... f5 {[%clk 0:02:03.8]} 15. e4 {[%clk 0:01:45.3]}
15... h6 {[%clk 0:01:55.3]} 16. Nh3 {[%clk 0:01:43.6]} 16... O-O {[%clk
0:01:49.8]} 17. exf5 {[%clk 0:01:39]} 17... exf5 {[%clk 0:01:49.8]} 18. Bc4+
{[%clk 0:01:15.6]} 18... Kh8 {[%clk 0:01:48.9]} 19. Kh1 {[%clk 0:01:13.9]} 19...
Nc6 {[%clk 0:01:47.7]} 20. c3 {[%clk 0:01:07.2]} 20... Qf6 {[%clk 0:01:38.6]}
21. Qe1 {[%clk 0:00:50.4]} 21... Bd7 {[%clk 0:01:21.8]} 22. Rd1 {[%clk
0:00:49.1]} 22... Rae8 {[%clk 0:01:17.3]} 23. Qd2 {[%clk 0:00:36.2]} 23... Bc8
{[%clk 0:01:15.6]} 24. Nf4 {[%clk 0:00:33.9]} 24... Bxf4 {[%clk 0:01:09.8]} 25.
Qxf4 {[%clk 0:00:30.5]} 25... Re4 {[%clk 0:01:10.1]} 26. Qxe4 {[%clk 0:00:24.3]}
26... fxe4 {[%clk 0:01:09.9]} 27. Nh4 {[%clk 0:00:24.5]} 27... Qxf1+ {[%clk
0:00:58.3]} 28. Rxf1 {[%clk 0:00:09.7]} 28... Rxf1+ {[%clk 0:00:57.7]} 29. Bxf1
{[%clk 0:00:09.4]} 29... Ne5 {[%clk 0:00:56.9]} 30. g3 {[%clk 0:00:08.1]} 30...
Be6 {[%clk 0:00:49.2]} 31. a3 {[%clk 0:00:06]} 31... e3 {[%clk 0:00:46]} 32. Kg1
{[%clk 0:00:04.9]} 32... Bg4 {[%clk 0:00:30.8]} 33. h3 {[%clk 0:00:02.3]} 33...
e2 {[%clk 0:00:29.6]} 34. Bxe2 {[%clk 0:00:01.3]} 34... Bxe2 {[%clk 0:00:29.7]}
35. Kf2 {[%clk 0:00:02.2]} 35... Bc4 {[%clk 0:00:29.3]} 36. Ke3 {[%clk
0:00:02.3]} 36... Be6 {[%clk 0:00:29]} 37. Kd4 {[%clk 0:00:01.9]} 37... Nd7
{[%clk 0:00:27.3]} 38. Ng6+ {[%clk 0:00:01.2]} 38... Kg8 {[%clk 0:00:27.8]} 39.
Nf4 {[%clk 0:00:01.8]} 39... Kf7 {[%clk 0:00:27]} 0-1

[Event "Late-Titled-Tuesday-Blitz-August-29-2023"]
[Site "Chess.com"]
[Date "2023.08.29"]
[Round "9"]
[White "zeitnot2006"]
[Black "betta2004"]
[Result "1-0"]
[WhiteElo "2753"]
[BlackElo "2573"]
[TimeControl "180+1"]
[EndTime "15:42:36 PDT"]
[Termination "zeitnot2006 won on time"]

1. e4 {[%clk 0:03:00.9]} 1... e5 {[%clk 0:02:57.6]} 2. d4 {[%clk 0:03:00.5]}
2... exd4 {[%clk 0:02:53]} 3. Qxd4 {[%clk 0:03:01.4]} 3... Nc6 {[%clk
0:02:52.1]} 4. Qe3 {[%clk 0:03:01.7]} 4... Nf6 {[%clk 0:02:51.2]} 5. Bd2 {[%clk
0:03:02.2]} 5... Bd6 {[%clk 0:02:50]} 6. c4 {[%clk 0:03:01.8]} 6... Qe7 {[%clk
0:02:49.7]} 7. Nc3 {[%clk 0:03:01.8]} 7... Bc5 {[%clk 0:02:49.2]} 8. Qd3 {[%clk
0:02:55.3]} 8... Nb4 {[%clk 0:02:46.9]} 9. Qb1 {[%clk 0:02:54.6]} 9... a5 {[%clk
0:02:45.4]} 10. a3 {[%clk 0:02:54.3]} 10... Nc6 {[%clk 0:02:45.4]} 11. Bd3
{[%clk 0:02:52.7]} 11... O-O {[%clk 0:02:38.8]} 12. Nge2 {[%clk 0:02:50.6]}
12... Ng4 {[%clk 0:02:32.1]} 13. Nd1 {[%clk 0:02:43.5]} 13... Nce5 {[%clk
0:02:15.4]} 14. h3 {[%clk 0:02:38.9]} 14... Qh4 {[%clk 0:02:12.6]} 15. O-O
{[%clk 0:02:13]} 15... d6 {[%clk 0:01:56.8]} 16. hxg4 {[%clk 0:02:04.5]} 16...
Bxg4 {[%clk 0:01:45]} 17. Ne3 {[%clk 0:01:23.2]} 17... f5 {[%clk 0:01:05.2]} 18.
f4 {[%clk 0:00:47.7]} 18... fxe4 {[%clk 0:00:29.7]} 19. fxe5 {[%clk 0:00:46.1]}
19... Rxf1+ {[%clk 0:00:30.2]} 20. Qxf1 {[%clk 0:00:45]} 20... Rf8 {[%clk
0:00:30.5]} 21. Qe1 {[%clk 0:00:42]} 21... Qh6 {[%clk 0:00:23.6]} 22. Qg3 {[%clk
0:00:22.9]} 22... exd3 {[%clk 0:00:21.1]} 23. Nc3 {[%clk 0:00:21.6]} 23... Bd4
{[%clk 0:00:08.8]} 24. Rf1 {[%clk 0:00:13]} 24... Rxf1+ {[%clk 0:00:07.9]} 25.
Kxf1 {[%clk 0:00:13.9]} 25... Qh1+ {[%clk 0:00:07.2]} 26. Kf2 {[%clk 0:00:14.5]}
26... Be2 {[%clk 0:00:03.7]} 27. Nxe2 {[%clk 0:00:12.3]} 27... dxe2 {[%clk
0:00:04.6]} 28. Kxe2 {[%clk 0:00:13]} 28... Bxe5 {[%clk 0:00:03.2]} 29. Qf3
{[%clk 0:00:13.7]} 29... Qb1 {[%clk 0:00:02.7]} 30. Qxb7 {[%clk 0:00:12.9]}
30... Qg6 {[%clk 0:00:01.9]} 31. Qd5+ {[%clk 0:00:12]} 31... Kf8 {[%clk
0:00:02]} 32. Qa8+ {[%clk 0:00:11.8]} 32... Ke7 {[%clk 0:00:02.6]} 33. Qf3
{[%clk 0:00:12.5]} 33... Qb1 {[%clk 0:00:01.8]} 34. Nd5+ {[%clk 0:00:11.5]}
34... Kd7 {[%clk 0:00:02.4]} 35. b4 {[%clk 0:00:10.4]} 1-0

[Event "Late-Titled-Tuesday-Blitz-August-29-2023"]
[Site "Chess.com"]
[Date "2023.08.29"]
[Round "9"]
[White "Msb2"]
[Black "tptagain"]
[Result "1-0"]
[WhiteElo "3014"]
[BlackElo "2881"]
[TimeControl "180+1"]
[EndTime "15:42:40 PDT"]
[Termination "Msb2 won by resignation"]

1. d4 {[%clk 0:03:00.9]} 1... d5 {[%clk 0:02:59.7]} 2. c4 {[%clk 0:03:01.2]}
2... e6 {[%clk 0:03:00.1]} 3. Nc3 {[%clk 0:03:01.7]} 3... Bb4 {[%clk 0:03:00.3]}
4. e3 {[%clk 0:02:59.7]} 4... Nf6 {[%clk 0:02:59.3]} 5. Bd2 {[%clk 0:03:00.1]}
5... O-O {[%clk 0:02:56.1]} 6. Nf3 {[%clk 0:03:00.6]} 6... Nbd7 {[%clk
0:02:53.4]} 7. a3 {[%clk 0:03:00.5]} 7... Be7 {[%clk 0:02:50.8]} 8. cxd5 {[%clk
0:03:01]} 8... exd5 {[%clk 0:02:50.8]} 9. Bd3 {[%clk 0:03:01.8]} 9... c6 {[%clk
0:02:50.6]} 10. Qc2 {[%clk 0:03:02.6]} 10... Re8 {[%clk 0:02:49.1]} 11. Ne5
{[%clk 0:03:02.8]} 11... Nf8 {[%clk 0:02:44.7]} 12. O-O {[%clk 0:02:56.5]} 12...
c5 {[%clk 0:02:43.3]} 13. Bb5 {[%clk 0:02:56.7]} 13... N6d7 {[%clk 0:02:42.3]}
14. Nxd5 {[%clk 0:02:51]} 14... Nxe5 {[%clk 0:02:23.4]} 15. Bxe8 {[%clk
0:02:42.8]} 15... Neg6 {[%clk 0:01:46.4]} 16. Nxe7+ {[%clk 0:02:37.9]} 16...
Qxe7 {[%clk 0:01:40.3]} 17. Bb5 {[%clk 0:02:32.4]} 17... b6 {[%clk 0:01:40.5]}
18. Bc6 {[%clk 0:02:28.6]} 18... Rb8 {[%clk 0:01:39.7]} 19. dxc5 {[%clk
0:02:25.7]} 19... Ne5 {[%clk 0:01:40]} 20. Be4 {[%clk 0:02:22.2]} 20... bxc5
{[%clk 0:01:37.9]} 21. Rac1 {[%clk 0:02:21.7]} 21... Qh4 {[%clk 0:01:37.2]} 22.
f4 {[%clk 0:02:14.3]} 22... Ng4 {[%clk 0:01:32.8]} 23. h3 {[%clk 0:02:14.6]}
23... Nf6 {[%clk 0:01:32.4]} 24. Be1 {[%clk 0:02:06.5]} 24... Qh6 {[%clk
0:01:31.6]} 25. Bf3 {[%clk 0:02:05.3]} 25... Ne6 {[%clk 0:01:31.1]} 26. b4
{[%clk 0:02:00.4]} 26... Ba6 {[%clk 0:01:28.1]} 27. Be2 {[%clk 0:01:56.1]} 27...
c4 {[%clk 0:01:25.8]} 28. Bxc4 {[%clk 0:01:42.3]} 28... Rc8 {[%clk 0:01:22.5]}
29. Qd3 {[%clk 0:01:38.4]} 29... Rd8 {[%clk 0:01:21.8]} 30. Bxa6 {[%clk
0:01:17.1]} 30... Rxd3 {[%clk 0:01:21.3]} 31. Bxd3 {[%clk 0:01:16.6]} 31... g6
{[%clk 0:01:13.9]} 32. Rc8+ {[%clk 0:01:14.5]} 32... Nf8 {[%clk 0:00:54.5]} 33.
Bc3 {[%clk 0:01:14]} 33... Nd7 {[%clk 0:00:54.2]} 34. Bd4 {[%clk 0:01:07]} 34...
Qh5 {[%clk 0:00:53]} 35. f5 {[%clk 0:01:01.5]} 35... f6 {[%clk 0:00:43.5]} 36.
fxg6 {[%clk 0:00:59.5]} 36... hxg6 {[%clk 0:00:44]} 37. Bc4+ {[%clk 0:00:57.9]}
37... Kg7 {[%clk 0:00:42.2]} 38. Rc7 {[%clk 0:00:58.1]} 38... Kh6 {[%clk
0:00:41.4]} 39. Rxa7 {[%clk 0:00:42]} 39... Qg5 {[%clk 0:00:38.9]} 40. Ra5
{[%clk 0:00:40.6]} 40... Ne5 {[%clk 0:00:38.4]} 41. Bxe5 {[%clk 0:00:36.5]}
41... Qxe3+ {[%clk 0:00:35.8]} 42. Kh1 {[%clk 0:00:32.5]} 42... fxe5 {[%clk
0:00:35.8]} 43. Rxf8 {[%clk 0:00:33.2]} 43... e4 {[%clk 0:00:33]} 44. Bf1 {[%clk
0:00:32.4]} 44... Qd2 {[%clk 0:00:26.5]} 45. Re5 {[%clk 0:00:29.7]} 45... e3
{[%clk 0:00:22.9]} 46. Rf3 {[%clk 0:00:29.1]} 46... Qc1 {[%clk 0:00:16.6]} 47.
Rexe3 {[%clk 0:00:28.8]} 1-0